fUSD/lending_fUSD_20240125
["ID","MTS","AMOUNT","RATE_DAILY","PERIOD"]
[312730726,1706189509752,-2667.12452485,0.00059517,30]
[312730727,1706189509762,-2362.19608449,0.00059517,30]
[312730728,1706189509771,-150.0,0.00059726,30]
[312730729,1706189509781,-150.0,0.00059726,30]
[312730730,1706189509790,-150.0,0.00059726,30]
[312730731,1706189509800,-150.0,0.00059855,42]
[312730732,1706189509810,-150.0,0.00059855,42]
[312730733,1706189509820,-200.0,0.00059863,120]
[312730734,1706189509830,-20000.0,0.00059876,120]
[312730735,1706189509842,-150.68067291,0.000599,5]
[312730736,1706189509852,-150.68067287,0.000599,5]
[312730737,1706189509861,-150.68067287,0.000599,5]
[312730738,1706189509872,-150.68067287,0.000599,5]
[312730739,1706189509883,-150.68067287,0.000599,5]
[312730740,1706189509896,-150.68067287,0.000599,5]
[312730741,1706189509907,-150.68067287,0.000599,5]
[312730742,1706189509918,-150.68067287,0.000599,5]
[312730743,1706189509928,-150.68067287,0.000599,5]
[312730744,1706189509937,-150.68067287,0.000599,5]
[312730745,1706189509947,-150.68067287,0.000599,5]
[312730746,1706189509957,-150.68067287,0.000599,5]
[312730747,1706189509967,-150.68067287,0.000599,5]
[312730748,1706189509977,-150.68067287,0.000599,5]
[312730749,1706189509987,-150.68067287,0.000599,5]
[312730750,1706189509997,-150.68067287,0.000599,5]
[312730751,1706189510007,-150.68067287,0.000599,5]
[312730752,1706189510017,-150.68067287,0.000599,5]
[312730753,1706189510027,-150.68067287,0.000599,5]
[312730754,1706189510038,-369.14219544,0.000599,120]
[312730755,1706189510047,-780.6992596,0.000599,119]
[312730756,1706189510057,-191.703769,0.0005998,5]
[312730757,1706189510067,-307.12927579,0.0005998,15]
[312730758,1706189510076,-222.19088522,0.0005998,5]
[312730759,1706189510086,-408.67172621,0.0005998,5]
[312730760,1706189510096,-328.01,0.0005998,120]
[312730761,1706189510105,-200.0,0.00059987,100]
[312730762,1706189510116,-200.0,0.00059987,99]
[312730763,1706189510125,-200.0,0.00059987,68]
[312730764,1706189510135,-200.0,0.00059987,78]
[312730765,1706189510145,-325.0,0.0005999,120]
[312730766,1706189510154,-359.674416,0.00059999,120]
[312730767,1706189510164,-445.80239268,0.00059999,50]
[312730768,1706189510173,-50000.0,0.0006,50]
[312730769,1706189510183,-1361.68017539,0.0006,120]
[312730770,1706189510194,-1219.09349955,0.0006,120]
[312730771,1706189510205,-980.91763053,0.0006,120]
[312730772,1706189510215,-256.97494413,0.0006,90]
[312730773,1706189510225,-1236.98003702,0.0006,30]
[312730774,1706189510235,-1354.0,0.0006,60]
[312730775,1706189510244,-15000.0,0.0006,7]
[312730776,1706189510254,-500.21592521,0.0006,10]
[312730777,1706189510264,-2190.13531148,0.0006,120]
[312730778,1706189510273,-228224.44120501,0.0006,120]
[312730779,1706189510283,-690.0,0.0006,120]
[312730780,1706189510293,-1066474.91213259,0.0006,120]
[312730781,1706189510303,-150.0,0.0006,2]
[312730782,1706189510314,-174.71450756,0.0006,120]
[312730783,1706189510323,-171.25248456,0.0006,120]
[312730784,1706189510333,-500.0,0.0006,120]
[312730785,1706189510343,-160.76967423,0.0006,60]
[312730786,1706189510353,-420.23455509,0.0006,30]
[312730787,1706189510365,-70000.0,0.0006,120]
[312730788,1706189510375,-178.81,0.0006,2]
[312730789,1706189510385,-975.0,0.0006,120]
[312730790,1706189510394,-106339.9203968,0.0006,120]
[312730791,1706189510404,-3403.82067972,0.0006,120]
[312730792,1706189510414,-165.17435897,0.0006,120]
[312730793,1706189510424,-1870.0,0.0006,120]
[312730794,1706189510434,-123801.96388131,0.0006,30]
[312730795,1706189510444,-1029.06421606,0.0006,120]
[312730796,1706189510454,-4984.50317639,0.0006,120]
[312730797,1706189510464,-3269.0,0.0006,120]
[312730798,1706189510474,-1000.0,0.0006,120]
[312730799,1706189510484,-60000.0,0.0006,120]
[312730800,1706189510493,-200.0,0.0006,120]
[312730801,1706189510503,-2000.0,0.0006,120]
[312730802,1706189510513,-554.90127864,0.0006,7]
[312730803,1706189510522,-152.73715064,0.0006,30]
[312730804,1706189510532,-150.0,0.0006,120]
[312730805,1706189510542,-500.0,0.0006,120]
[312730806,1706189510551,-38204.67127212,0.0006,120]
[312730807,1706189510561,-1247.26281585,0.0006,120]
[312730808,1706189510571,-500000.0,0.0006,30]
[312730809,1706189510580,-2814.06697249,0.0006,120]
[312730810,1706189510590,-2000.0,0.0006,120]
[312730811,1706189510600,-500.0,0.0006,120]
[312730812,1706189510609,-500.0,0.0006,120]
[312730813,1706189510619,-2000.0,0.0006,120]
[312730814,1706189510629,-11453.14174803,0.0006,60]
[312730815,1706189510643,-600.0,0.0006,120]
[312730816,1706189510653,-16500.0,0.0006,60]
[312730817,1706189510662,-155.05850837,0.0006,30]
[312730818,1706189510672,-500.0,0.0006,120]
[312730819,1706189510682,-500.0,0.0006,120]
[312730820,1706189510692,-368.0,0.0006,120]
[312730821,1706189510702,-500.27066229,0.0006,120]
[312730822,1706189510712,-1626.1024124,0.0006,120]
[312730823,1706189510722,-294.49257807,0.0006,31]
[312730824,1706189510732,-71715.84353174,0.0006,37]
[312730825,1706189510743,-306.262702,0.0006,90]
[312730826,1706189510752,-150.0,0.0006,90]
[312730827,1706189510762,-500.0,0.0006,30]
[312730828,1706189510772,-151.0,0.0006,120]
[312730829,1706189510782,-151.0,0.0006,120]
[312730830,1706189510792,-151.0,0.0006,120]
[312730831,1706189510802,-151.0,0.0006,2]
[312730832,1706189510812,-186.89901,0.0006,120]
[312730833,1706189510821,-186.89901,0.0006,120]
[312730834,1706189510831,-54760.35421736,0.0006,89]
[312730835,1706189510840,-207.60521,0.0006,60]
[312730836,1706189510850,-10860.0,0.0006,120]
[312730837,1706189510860,-151.0,0.0006,120]
[312730838,1706189510870,-3260.06370402,0.00060016,30]
[312730839,1706189511072,-1327.46899482,0.00060016,30]
[312730840,1706189511083,-2137.77479761,0.00060016,30]
[312730841,1706189511092,-2667.12452485,0.00060016,30]
[312730842,1706189511102,-2362.19608449,0.00060016,30]
[312730843,1706189511114,-200.0,0.0006011,120]
[312730844,1706189511124,-1312.5,0.00060273,120]
[312730845,1706189511133,-3024.18,0.00060274,120]
[312730846,1706189511143,-152.3,0.00060274,30]
[312730847,1706189511152,-150.0,0.00060274,30]
[312730848,1706189511161,-150.0,0.00060274,30]
[312730849,1706189511171,-150.0,0.00060274,30]
[312730850,1706189511180,-150.0,0.00060274,30]
[312730851,1706189511189,-150.0,0.00060274,30]
[312730852,1706189511198,-150.0,0.00060274,30]
[312730853,1706189511208,-150.0,0.00060274,30]
[312730854,1706189511217,-308.73,0.00060274,30]
[312730855,1706189511227,-150.0,0.00060274,30]
[312730856,1706189511236,-150.0,0.00060274,30]
[312730857,1706189511246,-409.25,0.00060274,30]
[312730858,1706189511255,-294.83,0.00060274,30]
[312730859,1706189511264,-294.83,0.00060274,30]
[312730860,1706189511275,-409.25,0.00060274,30]
[312730861,1706189511284,-294.83,0.00060274,30]
[312730862,1706189511294,-409.25,0.00060274,30]
[312730863,1706189511303,-294.83,0.00060274,30]
[312730864,1706189511313,-409.25,0.00060274,30]
[312730865,1706189511322,-294.83,0.00060274,30]
[312730866,1706189511333,-409.25,0.00060274,30]
[312730867,1706189511342,-294.83,0.00060274,30]
[312730868,1706189511351,-294.83,0.00060274,30]
[312730869,1706189511363,-409.25,0.00060274,30]
[312730870,1706189511372,-409.25,0.00060274,30]
[312730871,1706189511382,-294.83,0.00060274,30]
[312730872,1706189511391,-294.83,0.00060274,30]
[312730873,1706189511401,-294.83,0.00060274,30]
[312730874,1706189511410,-409.25,0.00060274,30]
[312730875,1706189511419,-294.83,0.00060274,30]
[312730876,1706189511429,-409.25,0.00060274,30]
[312730877,1706189511439,-294.83,0.00060274,30]
[312730878,1706189511449,-294.83,0.00060274,30]
[312730879,1706189511458,-409.25,0.00060274,30]
[312730880,1706189511468,-294.83,0.00060274,30]
[312730881,1706189511477,-409.25,0.00060274,30]
[312730882,1706189511487,-294.83,0.00060274,30]
[312730883,1706189511496,-409.25,0.00060274,30]
[312730884,1706189511505,-409.25,0.00060274,30]
[312730885,1706189511515,-294.83,0.00060274,30]
[312730886,1706189511525,-409.25,0.00060274,30]
[312730887,1706189511535,-294.83,0.00060274,30]
[312730888,1706189511545,-409.25,0.00060274,30]
[312730889,1706189511555,-294.83,0.00060274,30]
[312730890,1706189511564,-294.83,0.00060274,30]
[312730891,1706189511573,-409.25,0.00060274,30]
[312730892,1706189511583,-294.83,0.00060274,30]
[312730893,1706189511593,-409.25,0.00060274,30]
[312730894,1706189511602,-294.83,0.00060274,30]
[312730895,1706189511615,-294.83,0.00060274,30]
[312730896,1706189511625,-294.83,0.00060274,30]
[312730897,1706189511639,-409.25,0.00060274,30]
[312730898,1706189511649,-294.83,0.00060274,30]
[312730899,1706189511660,-294.83,0.00060274,30]
[312730900,1706189511671,-372.25,0.00060274,30]
[312730901,1706189511681,-150.0,0.00060274,30]
[312730902,1706189511692,-150.0,0.00060274,30]
[312730903,1706189511703,-150.0,0.00060274,30]
[312730904,1706189511714,-150.0,0.00060274,30]
[312730905,1706189511724,-150.0,0.00060274,30]
[312730906,1706189511735,-150.0,0.00060274,30]
[312730907,1706189511746,-294.83,0.00060274,30]
[312730908,1706189511757,-150.0,0.00060274,30]
[312730909,1706189511767,-150.0,0.00060274,30]
[312730910,1706189511778,-294.83,0.00060274,30]
[312730911,1706189511788,-150.0,0.00060274,30]
[312730912,1706189511798,-409.25,0.00060274,30]
[312730913,1706189511809,-294.83,0.00060274,30]
[312730914,1706189511820,-150.0,0.00060274,30]
[312730915,1706189511830,-409.25,0.00060274,30]
[312730916,1706189511840,-409.25,0.00060274,30]
[312730917,1706189511850,-150.0,0.00060274,30]
[312730918,1706189511862,-409.25,0.00060274,30]
[312730919,1706189511872,-150.0,0.00060274,30]
[312730920,1706189511881,-409.25,0.00060274,30]
[312730921,1706189511892,-150.0,0.00060274,30]
[312730922,1706189511902,-150.0,0.00060274,30]
[312730923,1706189511912,-409.25,0.00060274,30]
[312730924,1706189511921,-150.0,0.00060274,30]
[312730925,1706189511931,-150.0,0.00060274,30]
[312730926,1706189511941,-150.0,0.00060274,30]
[312730927,1706189511951,-150.0,0.00060274,30]
[312730928,1706189511961,-150.0,0.00060274,30]
[312730929,1706189511970,-294.83,0.00060274,30]
[312730930,1706189511980,-294.83,0.00060274,30]
[312730931,1706189511989,-294.83,0.00060274,30]
[312730932,1706189511998,-298.92,0.00060274,30]
[312730933,1706189512008,-409.25,0.00060274,30]
[312730934,1706189512018,-292.31,0.00060274,30]
[312730935,1706189512028,-478.81,0.00060274,30]
[312730936,1706189512037,-409.25,0.00060274,30]
[312730937,1706189512047,-294.83,0.00060274,30]
[312730938,1706189512056,-294.83,0.00060274,30]
[312730939,1706189512065,-150.0,0.00060274,60]
[312730940,1706189512075,-300.0,0.00060274,30]
[312730941,1706189512085,-942.96,0.00060274,30]
[312730942,1706189512095,-292.31,0.00060274,30]
[312730943,1706189512105,-150.0,0.00060274,30]
[312730944,1706189512118,-294.83,0.00060274,30]
[312730945,1706189512129,-409.25,0.00060274,30]
[312730946,1706189512139,-292.31,0.00060274,30]
[312730947,1706189512149,-150.0,0.00060274,30]
[312730948,1706189512159,-409.25,0.00060274,30]
[312730949,1706189512170,-294.83,0.00060274,30]
[312730950,1706189512180,-150.0,0.00060274,30]
[312730951,1706189512192,-409.25,0.00060274,30]
[312730952,1706189512201,-292.31,0.00060274,30]
[312730953,1706189512213,-292.31,0.00060274,30]
[312730954,1706189512223,-409.25,0.00060274,30]
[312730955,1706189512233,-150.0,0.00060274,30]
[312730956,1706189512242,-409.25,0.00060274,30]
[312730957,1706189512251,-292.31,0.00060274,30]
[312730958,1706189512260,-150.0,0.00060274,30]
[312730959,1706189512271,-409.25,0.00060274,30]
[312730960,1706189512281,-292.31,0.00060274,30]
[312730961,1706189512291,-150.0,0.00060274,30]
[312730962,1706189512303,-150.0,0.00060274,30]
[312730963,1706189512314,-150.0,0.00060274,30]
[312730964,1706189512323,-150.0,0.00060274,30]
[312730965,1706189512333,-150.0,0.00060274,30]
[312730966,1706189512343,-150.0,0.00060274,30]
[312730967,1706189512353,-150.0,0.00060274,30]
[312730968,1706189512367,-682.62,0.00060274,30]
[312730969,1706189512376,-250.0,0.00060274,45]
[312730970,1706189512385,-442.0,0.00060274,45]
[312730971,1706189512394,-320.0,0.00060274,45]
[312730972,1706189512404,-320.0,0.00060274,45]
[312730973,1706189512413,-320.0,0.00060274,45]
[312730974,1706189512422,-150.0,0.000603,2]
[312730975,1706189512431,-474.0,0.000603,30]
[312730976,1706189512440,-2000.0,0.000603,120]
[312730977,1706189512449,-200.0,0.000603,30]
[312730978,1706189512459,-2624.64207069,0.000603,30]
[312730979,1706189512469,-8000.0,0.000603,120]
[312730980,1706189512478,-1000.0,0.000603,30]
[312730981,1706189512488,-358.0,0.000603,30]
[312730982,1706189512497,-300.0,0.000603,30]
[312730983,1706189512507,-3000.0,0.000603,30]
[312730984,1706189512517,-500.0,0.000603,30]
[312730985,1706189512527,-150.0,0.00060471,120]
[312730986,1706189512536,-150.0,0.00060471,120]
[312730987,1706189512546,-3260.06370402,0.00060515,120]
[312730988,1706189512555,-1327.46899482,0.00060515,120]
[312730989,1706189512565,-2137.77479761,0.00060515,120]
[312730990,1706189512574,-2667.12452485,0.00060515,120]
[312730991,1706189512583,-2362.19608449,0.00060515,120]
[312730992,1706189512593,-193.0,0.00060705,8]
[312730993,1706189512602,-164.96895383,0.00060781,2]
[312730994,1706189512616,-485.66009603,0.000608,120]
[312730995,1706189512626,-394.66,0.00060886,2]
[312730996,1706189512640,-500.0,0.000609,120]
[312730997,1706189512649,-163.38428516,0.000609,120]
[312730998,1706189512659,-666.0,0.00060958,120]
[312730999,1706189512670,-200.0,0.00060986,120]
[312731000,1706189512681,-1000.0,0.00060999,120]
[312731001,1706189512693,-50000.0,0.00061,51]
[312731002,1706189512703,-212.38151165,0.00061,7]
[312731003,1706189512712,-10000.0,0.00061,120]
[312731004,1706189512722,-25477.59463505,0.00061,40]
[312731005,1706189512731,-500.0,0.00061,120]
[312731006,1706189512740,-3260.06370402,0.00061014,120]
[312731007,1706189512749,-1327.46899482,0.00061014,120]
[312731008,1706189512759,-2137.77479761,0.00061014,120]
[312731009,1706189512769,-2667.12452485,0.00061014,120]
[312731010,1706189512778,-2362.19608449,0.00061014,120]
[312731011,1706189512788,-150.0,0.00061087,120]
[312731012,1706189512797,-150.0,0.00061087,120]
[312731013,1706189512807,-6611.0,0.000611,30]
[312731014,1706189512816,-2000.0,0.000611,120]
[312731015,1706189512826,-200.0,0.00061123,120]
[312731016,1706189512836,-152.0,0.00061246,10]
[312731017,1706189512845,-3260.06370402,0.00061512,120]
[312731018,1706189512855,-1327.46899482,0.00061512,120]
[312731019,1706189512867,-2137.77479761,0.00061512,120]
[312731020,1706189512875,-2667.12452485,0.00061512,120]
[312731021,1706189512885,-2362.19608449,0.00061512,120]
[312731022,1706189512896,-5000.0,0.000616,120]
[312731023,1706189512907,-786.69961356,0.00061653,10]
[312731024,1706189512917,-150.0,0.00061703,120]
[312731025,1706189512926,-150.0,0.00061703,120]
[312731026,1706189512935,-349.3423,0.000618,7]
[312731027,1706189512945,-150.0,0.0006187,30]
[312731028,1706189512955,-6000.19462372,0.000619,120]
[312731029,1706189512966,-167.44992883,0.00061904,60]
[312731030,1706189512976,-369.36193461,0.00061966,60]
[312731031,1706189512987,-200.0,0.00061987,107]
[312731032,1706189512998,-50000.0,0.00062,52]
[312731033,1706189513007,-500.21592521,0.00062,10]
[312731034,1706189513019,-1000.0,0.00062,120]
[312731035,1706189513028,-500.0,0.00062,120]
[312731036,1706189513037,-1000.0,0.00062,120]
[312731037,1706189513047,-429.29045709,0.00062,90]
[312731038,1706189513056,-567.1343,0.00062,120]
[312731039,1706189513065,-3260.06370402,0.00062011,120]
[312731040,1706189513074,-1327.46899482,0.00062011,120]
[312731041,1706189513083,-2137.77479761,0.00062011,120]
[312731042,1706189513093,-2667.12452485,0.00062011,120]
[312731043,1706189513102,-2362.19608449,0.00062011,120]
[312731044,1706189513114,-200.0,0.0006211,120]
[312731045,1706189513123,-200.0,0.00062137,120]
[312731046,1706189513133,-150.0,0.00062319,120]
[312731047,1706189513143,-150.0,0.00062319,120]
[312731048,1706189513153,-2000.0,0.00062328,60]
[312731049,1706189513162,-526.93536388,0.000625,30]
[312731050,1706189513171,-3260.06370402,0.0006251,120]
[312731051,1706189513181,-1327.46899482,0.0006251,120]
[312731052,1706189513190,-2137.77479761,0.0006251,120]
[312731053,1706189513199,-2667.12452485,0.0006251,120]
[312731054,1706189513209,-2362.19608449,0.0006251,120]
[312731055,1706189513219,-5000.0,0.00062885,90]
[312731056,1706189513228,-150.0,0.00062935,120]
[312731057,1706189513238,-150.0,0.00062935,120]
[312731058,1706189513247,-1000.0,0.00062999,120]
[312731059,1706189513257,-50000.0,0.00063,53]
[312731060,1706189513267,-27470.24513644,0.00063,10]
[312731061,1706189513277,-500.0,0.00063,60]
[312731062,1706189513288,-10865.0,0.00063,33]
[312731063,1706189513297,-634602.0,0.00063,33]
[312731064,1706189513307,-5000.0,0.00063,120]
[312731065,1706189513317,-3260.06370402,0.00063009,120]
[312731066,1706189513327,-1327.46899482,0.00063009,120]
[312731067,1706189513337,-2137.77479761,0.00063009,120]
[312731068,1706189513347,-2667.12452485,0.00063009,120]
[312731069,1706189513356,-2362.19608449,0.00063009,120]
[312731070,1706189513369,-666.0,0.00063013,120]
[312731071,1706189513378,-1500.0,0.00063013,120]
[312731072,1706189513388,-394.66,0.0006315,2]
[312731073,1706189513398,-200.0,0.00063151,120]
[312731074,1706189513408,-3350.0,0.00063179,120]
[312731075,1706189513417,-200.0,0.00063233,120]
[312731076,1706189513427,-10000.0,0.000635,120]
[312731077,1706189513474,-3260.06370402,0.00063508,120]
[312731078,1706189513483,-1327.46899482,0.00063508,120]
[312731079,1706189513492,-2137.77479761,0.00063508,120]
[312731080,1706189513501,-2667.12452485,0.00063508,120]
[312731081,1706189513510,-2362.19608449,0.00063508,120]
[312731082,1706189513519,-150.0,0.00063551,120]
[312731083,1706189513527,-150.0,0.00063551,120]
[312731084,1706189513537,-152.0,0.000636,11]
[312731085,1706189513548,-249.11384848,0.000636,5]
[312731086,1706189513557,-3000.0,0.0006385,120]
[312731087,1706189513568,-6000.0,0.0006395,120]
[312731088,1706189513580,-200.0,0.00063987,109]
[312731089,1706189513589,-1000.0,0.00063999,120]
[312731090,1706189513599,-50000.0,0.00064,54]
[312731091,1706189513609,-38400.0,0.00064,120]
[312731092,1706189513618,-500.21592521,0.00064,10]
[312731093,1706189513627,-5000.0,0.00064,120]
[312731094,1706189513637,-10000.0,0.00064,120]
[312731095,1706189513648,-40021.01857923,0.00064,30]
[312731096,1706189513657,-500.0,0.00064,120]
[312731097,1706189513666,-2141177.03990015,0.00064,60]
[312731098,1706189513675,-2988.91994415,0.00064,60]
[312731099,1706189513686,-60000.0,0.00064,120]
[312731100,1706189513695,-17873.49078507,0.00064,30]
[312731101,1706189513704,-151.0,0.00064,120]
[312731102,1706189513713,-151.0,0.00064,120]
[312731103,1706189513724,-152.064219,0.00064,120]
[312731104,1706189513734,-151.0,0.00064,2]
[312731105,1706189513745,-186.89901,0.00064,120]
[312731106,1706189513755,-186.89901,0.00064,120]
[312731107,1706189513764,-151.0,0.00064,120]
[312731108,1706189513774,-3260.06370402,0.00064006,120]
[312731109,1706189513783,-1327.46899482,0.00064006,120]
[312731110,1706189513793,-2137.77479761,0.00064006,120]
[312731111,1706189513802,-2667.12452485,0.00064006,120]
[312731112,1706189513812,-2362.19608449,0.00064006,120]
[312731113,1706189513821,-3000.0,0.0006405,120]
[312731114,1706189513831,-3000.0,0.0006415,120]
[312731115,1706189513841,-200.0,0.00064164,120]
[312731116,1706189513850,-150.0,0.00064167,120]
[312731117,1706189513859,-150.0,0.00064167,120]
[312731118,1706189513870,-40000.0,0.000642,120]
[312731119,1706189513880,-1117.06566718,0.000642,120]
[312731120,1706189513890,-3000.0,0.0006425,120]
[312731121,1706189513899,-6000.0,0.0006435,120]
[312731122,1706189513910,-200.0,0.00064356,120]
[312731123,1706189513920,-6000.0,0.0006445,120]
[312731124,1706189513931,-1000.0,0.000645,120]
[312731125,1706189513942,-3260.06370402,0.00064505,120]
[312731126,1706189513952,-1327.46899482,0.00064505,120]
[312731127,1706189513963,-2137.77479761,0.00064505,120]
[312731128,1706189513974,-2667.12452485,0.00064505,120]
[312731129,1706189513984,-2362.19608449,0.00064505,120]
[312731130,1706189513995,-3000.0,0.0006455,120]
[312731131,1706189514004,-6000.0,0.0006465,120]
[312731132,1706189514013,-2000.0,0.000647,120]
[312731133,1706189514022,-202.27449321,0.00064747,120]
[312731134,1706189514031,-150.0,0.00064783,120]
[312731135,1706189514040,-194.79012332,0.00064783,120]
[312731136,1706189514050,-4000.0,0.000648,120]
[312731137,1706189514059,-1000.0,0.0006482,120]
[312731138,1706189514070,-278.13614965,0.000649,120]
[312731139,1706189514081,-1820.76207766,0.0006492,120]
[312731140,1706189514091,-1000.0,0.0006494,120]
[312731141,1706189514101,-150.0,0.0006495,120]
[312731142,1706189514111,-1000.0,0.0006496,120]
[312731143,1706189514120,-1000.0,0.0006498,120]
[312731144,1706189514129,-1000.0,0.0006498,30]
[312731145,1706189514138,-53842.89038091,0.00064999,120]
[312731146,1706189514147,-1000.0,0.00064999,120]
[312731147,1706189514156,-50000.0,0.00065,55]
[312731148,1706189514165,-300.0,0.00065,25]
[312731149,1706189514175,-1344.27020364,0.00065,120]
[312731150,1706189514184,-2189.22675242,0.00065,14]
[312731151,1706189514193,-180.0,0.00065,2]
[312731152,1706189514203,-3000.0,0.00065,90]
[312731153,1706189514213,-4662.48894328,0.00065,120]
[312731154,1706189514222,-287.70436444,0.00065,31]
[312731155,1706189514232,-500.0,0.00065,120]
[312731156,1706189514241,-100000.0,0.00065,120]
[312731157,1706189514250,-239031.79927706,0.00065,120]
[312731158,1706189514260,-23723.57473427,0.00065,120]
[312731159,1706189514269,-3930.46668722,0.00065,10]
[312731160,1706189514278,-37704.89761449,0.00065,120]
[312731161,1706189514288,-262.8975481,0.00065,120]
[312731162,1706189514297,-10486.0,0.00065,60]
[312731163,1706189514306,-500000.0,0.00065,30]
[312731164,1706189514315,-73659.12,0.00065,120]
[312731165,1706189514324,-882.55369274,0.00065,120]
[312731166,1706189514337,-535.24116137,0.00065,120]
[312731167,1706189514346,-500.0,0.00065,120]
[312731168,1706189514355,-1640.592039,0.00065,50]
[312731169,1706189514367,-3260.06370402,0.00065004,120]
[312731170,1706189514376,-1327.46899482,0.00065004,120]
[312731171,1706189514385,-2137.77479761,0.00065004,120]
[312731172,1706189514396,-2667.12452485,0.00065004,120]
[312731173,1706189514405,-2362.19608449,0.00065004,120]
[312731174,1706189514415,-666.0,0.00065068,120]
[312731175,1706189514424,-5287.6,0.000651,120]
[312731176,1706189514434,-200.0,0.00065178,120]
[312731177,1706189514445,-150.0,0.00065399,120]
[312731178,1706189514455,-394.66,0.00065414,2]
[312731179,1706189514465,-200.0,0.00065479,120]
[312731180,1706189514474,-2593.99761259,0.000655,120]
[312731181,1706189514484,-3260.06370402,0.00065503,120]
[312731182,1706189514493,-1327.46899482,0.00065503,120]
[312731183,1706189514502,-2137.77479761,0.00065503,120]
[312731184,1706189514511,-2667.12452485,0.00065503,120]
[312731185,1706189514522,-2362.19608449,0.00065503,120]
[312731186,1706189514533,-30000.0,0.000656,120]
[312731187,1706189514543,-320.06249999,0.00065753,120]
[312731188,1706189514552,-474.64255,0.000658,30]
[312731189,1706189514563,-1381.0,0.000658,120]
[312731190,1706189514575,-784.0,0.000658,30]
[312731191,1706189514586,-358.60058197,0.000658,30]
[312731192,1706189514597,-300.0,0.000658,30]
[312731193,1706189514609,-3000.0,0.000658,30]
[312731194,1706189514620,-500.0,0.000658,30]
[312731195,1706189514630,-524.59782844,0.000659,120]
[312731196,1706189514640,-35000.000001,0.00065952,120]
[312731197,1706189514652,-460.42695669,0.0006598,25]
[312731198,1706189514663,-200.0,0.00065987,111]
[312731199,1706189514674,-500.0,0.00065987,120]
[312731200,1706189514686,-470.61563911,0.0006599,120]
[312731201,1706189514696,-1000.0,0.00065999,120]
[312731202,1706189514706,-90692.65447345,0.00065999,120]
[312731203,1706189514716,-50000.0,0.00066,56]
[312731204,1706189514727,-3845.5071248,0.00066,120]
[312731205,1706189514739,-7173.77636152,0.00066,120]
[312731206,1706189514750,-500.21592521,0.00066,10]
[312731207,1706189514760,-500.0,0.00066,120]
[312731208,1706189514770,-500.0,0.00066,120]
[312731209,1706189514779,-3999.999999,0.00066,2]
[312731210,1706189514788,-3260.06370402,0.00066001,120]
[312731211,1706189514797,-1327.46899482,0.00066001,120]
[312731212,1706189514807,-2137.77479761,0.00066001,120]
[312731213,1706189514816,-2667.12452485,0.00066001,120]
[312731214,1706189514825,-2362.19608449,0.00066001,120]
[312731215,1706189514835,-150.0,0.00066015,120]
[312731216,1706189514844,-200.0,0.00066192,120]
[312731217,1706189514854,-4232661.9926246,0.000665,120]
[312731218,1706189514865,-17873.49078507,0.000665,30]
[312731219,1706189514875,-151.0,0.000665,120]
[312731220,1706189514884,-151.0,0.000665,120]
[312731221,1706189514893,-151.0,0.000665,2]
[312731222,1706189514903,-3260.06,0.000665,120]
[312731223,1706189514912,-1327.46,0.000665,120]
[312731224,1706189514922,-186.89901,0.000665,120]
[312731225,1706189514930,-186.89901,0.000665,120]